fUSD/lending_fUSD_20260327
["ID","MTS","AMOUNT","RATE_DAILY","PERIOD"]
[418933927,1774583431712,-1186.0,0.00014422,2]
[418933928,1774583431728,-600.0,0.00014422,2]
[418933929,1774583431742,-714.0,0.00014422,2]
[418933930,1774583431751,-757.55239421,0.00014422,2]
[418933956,1774583437562,-1742.44760579,0.00014422,2]
[418933957,1774583437572,-1662.11239421,0.00014422,2]
[418933973,1774583439868,-837.88760579,0.00014422,2]
[418933974,1774583439879,-300.0,0.00014422,2]
[418933975,1774583439888,-300.0,0.00014422,2]
[418933976,1774583439898,-300.0,0.00014422,2]
[418933977,1774583439907,-300.0,0.00014422,2]
[418933978,1774583439916,-71.89766827,0.00014422,2]
[418933979,1774583439975,-228.10233173,0.00014422,2]
[418933980,1774583439984,-71.89766827,0.00014422,2]
[418934032,1774584631789,-285.0,0.00011545,2]
[418934033,1774584631799,-260.71436126,0.00011545,2]
[418934034,1774584631808,-150.52,0.00011545,2]
[418934035,1774584631818,-250.0,0.000127,2]
[418934036,1774584631827,-510.0,0.00013111,2]
[418934037,1774584631837,-166.66,0.00013522,2]
[418934038,1774584631847,-159.6968634,0.00013707,2]
[418934039,1774584631855,-67.40877534,0.00013718,2]
[418934040,1774584631867,-90.99122466,0.00013718,2]
[418934041,1774584631877,-166.66,0.00013807,2]
[418934042,1774584631886,-52.90705228,0.00013932,2]
[418934043,1774584631897,-98.92294772,0.00013932,2]
[418934044,1774584631907,-235.10190228,0.00014004,2]
[418934045,1774584631918,-511.41,0.00014004,2]
[418934046,1774584631930,-2289.19809772,0.00014004,2]
[418934047,1774584631940,-200.0,0.00014015,2]
[418934048,1774584631949,-200.0,0.00014077,2]
[418934049,1774584631958,-166.66,0.00014092,2]
[418934050,1774584631967,-654.6,0.00014143,2]
[418934051,1774584631976,-150.0,0.00014336,2]
[418934052,1774584631986,-166.66,0.00014376,2]
[418934053,1774584631995,-159.69686339,0.00014403,2]
[418934054,1774584632005,-1200.0,0.00014447,2]
[418934055,1774584632014,-7145.98386627,0.00014448,2]
[418934057,1774584632029,-109.48063373,0.00014448,2]
[418934059,1774584632038,-150.0,0.00014496,2]
[418934061,1774584632047,-500.0,0.00014497,2]
[418934062,1774584632057,-151.0,0.00014497,2]
[418934065,1774584632066,-500.0,0.00014497,2]
[418934067,1774584632075,-151.0,0.00014497,2]
[418934068,1774584632084,-456.86366508,0.00014497,2]
[418934069,1774584632094,-151.0,0.00014497,2]
[418934070,1774584632103,-151.0,0.00014497,2]
[418934072,1774584632112,-151.0,0.00014497,2]
[418934074,1774584632122,-151.0,0.00014497,2]
[418934076,1774584632131,-151.0,0.00014497,2]
[418934078,1774584632140,-151.0,0.00014497,2]
[418934080,1774584632149,-151.0,0.00014497,2]
[418934083,1774584632159,-151.0,0.00014497,2]
[418934085,1774584632168,-151.0,0.00014497,2]
[418934087,1774584632178,-151.87246481,0.00014497,2]
[418934089,1774584632187,-151.0,0.00014497,2]
[418934091,1774584632196,-151.0,0.00014497,2]
[418934093,1774584632206,-521.99345554,0.00014497,2]
[418934095,1774584632215,-230.32978084,0.00014497,2]
[418934097,1774584632228,-27.22866716,0.00014497,2]
[418934099,1774584632237,-474.32333069,0.00014506,2]
[418934102,1774584632249,-339.75260614,0.00014506,2]
[418934104,1774584632260,-790.09174228,0.00014506,2]
[418934106,1774584632271,-867.29465335,0.00014506,2]
[418934117,1774584637954,-933.63754,0.00014506,2]
[418934118,1774584637966,-2592.75273704,0.00014506,2]
[418934119,1774584637975,-197.1775096,0.00014506,2]
[418934120,1774584637984,-1067.3695373,0.00014506,2]
[418934121,1774584637993,-421.6240581,0.00014506,2]
[418934122,1774584638003,-489.191729,0.00014506,2]
[418934123,1774584638012,-6218.92226544,0.00014506,2]
[418934124,1774584638023,-2765.34763046,0.00014506,2]
[418934125,1774584638031,-1241.676163,0.00014506,2]
[418934126,1774584638040,-1230.2355208,0.00014506,2]
[418934127,1774584638049,-1500.0,0.00014516,2]
[418934128,1774584638059,-2000.0,0.00014548,2]
[418934129,1774584638068,-150.0,0.000146,2]
[418934130,1774584638078,-166.66,0.00014661,2]
[418934131,1774584638087,-184.55,0.00014762,2]
[418934132,1774584638096,-374.30379425,0.00014841,2]
[418934133,1774584638105,-654.6,0.0001485,2]
[418934134,1774584638114,-166.66,0.00014946,2]
[418934135,1774584638123,-165.18,0.00015032,2]
[418934136,1774584638132,-327.01,0.00015056,2]
[418934137,1774584638141,-151.79545716,0.00015057,2]
[418934138,1774584638151,-601.47332792,0.00015057,2]
[418934139,1774584638160,-159.69686339,0.00015099,2]
[418934140,1774584638169,-150.0,0.00015148,2]
[418934141,1774584638178,-302.90983201,0.00015171,2]
[418934142,1774584638187,-578.20924308,0.00015199,2]
[418934143,1774584638196,-500.0,0.00015199,2]
[418934144,1774584638205,-500.0,0.00015199,2]
[418934145,1774584638214,-9211.34798985,0.00015199,2]
[418934146,1774584638223,-500.0,0.00015199,2]
[418934147,1774584638232,-500.0,0.00015199,2]
[418934148,1774584638242,-500.0,0.00015199,2]
[418934149,1774584638251,-500.0,0.00015199,2]
[418934150,1774584638261,-500.0,0.00015199,2]
[418934151,1774584638270,-500.0,0.00015199,2]
[418934152,1774584638279,-500.0,0.00015199,2]
[418934153,1774584638288,-500.0,0.00015199,2]
[418934154,1774584638297,-500.0,0.00015199,2]
[418934155,1774584638307,-500.0,0.00015199,2]
[418934156,1774584638315,-500.0,0.00015199,2]
[418934157,1774584638324,-500.0,0.00015199,2]
[418934158,1774584638333,-500.0,0.00015199,2]
[418934159,1774584638343,-500.0,0.00015199,2]
[418934160,1774584638352,-500.0,0.00015199,2]
[418934161,1774584638361,-500.0,0.00015199,2]
[418934162,1774584638371,-500.0,0.00015199,2]
[418934163,1774584638380,-500.0,0.00015199,2]
[418934164,1774584638388,-500.0,0.00015199,2]
[418934165,1774584638397,-500.0,0.00015199,2]
[418934166,1774584638406,-500.0,0.00015199,2]
[418934167,1774584638415,-500.0,0.00015199,2]
[418934168,1774584638424,-500.0,0.00015199,2]
[418934169,1774584638434,-500.0,0.00015199,2]
[418934170,1774584638443,-500.0,0.00015199,2]
[418934171,1774584638452,-500.0,0.00015199,2]
[418934172,1774584638461,-500.0,0.00015199,2]
[418934173,1774584638470,-151.0,0.00015199,2]
[418934174,1774584638479,-500.0,0.00015199,2]
[418934175,1774584638488,-500.0,0.00015199,2]
[418934176,1774584638497,-500.0,0.00015199,2]
[418934177,1774584638506,-500.0,0.00015199,2]
[418934178,1774584638515,-500.0,0.00015199,2]
[418934179,1774584638524,-500.0,0.00015199,2]
[418934180,1774584638533,-500.0,0.00015199,2]
[418934181,1774584638543,-500.0,0.00015199,2]
[418934182,1774584638552,-174.61919141,0.00015199,2]
[418934183,1774584638561,-250.0,0.00015199,2]
[418934184,1774584638570,-200.0,0.00015199,2]
[418934185,1774584638578,-250.0,0.00015199,2]
[418934186,1774584638587,-164.53525355,0.00015199,2]
[418934187,1774584638596,-250.0,0.00015199,2]
[418934188,1774584638605,-80.84802163,0.00015199,2]
[418934189,1774584638617,-70.15197837,0.00015199,2]
[418934190,1774584638628,-250.0,0.00015199,2]
[418934191,1774584638637,-250.0,0.00015199,2]
[418934192,1774584638646,-156.587,0.00015199,2]
[418934193,1774584638655,-51.30816319,0.00015199,2]
[418934194,1774584638666,-198.69183681,0.00015199,2]
[418934195,1774584638675,-194.59067134,0.00015199,2]
[418934196,1774584638684,-250.0,0.00015199,2]
[418934197,1774584638693,-378.09505854,0.00015199,2]
[418934198,1774584638702,-250.0,0.00015199,2]
[418934199,1774584638711,-250.0,0.00015199,2]
[418934200,1774584638720,-250.0,0.00015199,2]
[418934201,1774584638729,-250.0,0.00015199,2]
[418934202,1774584638738,-250.0,0.00015199,2]
[418934203,1774584638747,-279.9045709,0.00015199,2]
[418934204,1774584638756,-241.69131362,0.00015199,2]
[418934205,1774584638767,-21.2107518,0.00015199,2]
[418934206,1774584638776,-743.50770149,0.00015199,2]
[418934207,1774584638785,-500.0,0.00015199,2]
[418934208,1774584638794,-500.0,0.00015199,2]
[418934209,1774584638804,-518.37654495,0.00015199,2]
[418934210,1774584638813,-151.0,0.00015254,2]
[418934211,1774584638822,-151.0,0.00015254,2]
[418934212,1774584638831,-151.0,0.00015254,2]
[418934213,1774584638841,-158.948087,0.00015254,2]
[418934214,1774584638850,-158.948087,0.00015254,2]
[418934215,1774584638859,-158.948087,0.00015254,2]
[418934216,1774584638868,-158.948087,0.00015254,2]
[418934217,1774584638877,-151.0,0.00015254,2]
[418934218,1774584638886,-500.0,0.00015254,2]
[418934219,1774584638895,-771.62261352,0.00015254,2]
[418934220,1774584638906,-1557.2268383,0.00015254,2]
[418934221,1774584638917,-1537.89664459,0.00015254,2]
[418934222,1774584638928,-3288.4569978,0.00015254,2]
[418934223,1774584638946,-3240.0,0.0001395,2]
[418934224,1774584638956,-2396.96477126,0.00015254,2]
[418934225,1774584638965,-151.0,0.00015254,2]
[418934226,1774584638974,-272.62944185,0.00015254,2]
[418934227,1774584638983,-151.0,0.00015309,2]
[418934228,1774584638992,-201.724896,0.00015309,2]
[418934229,1774584639001,-151.0,0.00015309,2]
[418934230,1774584639010,-151.0,0.00015309,2]
[418934231,1774584639019,-196.10983,0.00015309,2]
[418934232,1774584639028,-196.10983,0.00015309,2]
[418934233,1774584639037,-196.10983,0.00015309,2]
[418934234,1774584639046,-196.10983,0.00015309,2]
[418934235,1774584639055,-264.24576,0.00015309,2]
[418934236,1774584639065,-264.24576,0.00015309,2]
[418934237,1774584639074,-264.24576,0.00015309,2]
[418934238,1774584639083,-264.24576,0.00015309,2]
[418934239,1774584639092,-500.0,0.00015309,2]
[418934240,1774584639102,-7585.32016781,0.00015309,2]
[418934243,1774584640936,-151.79545716,0.00015309,2]
[418934244,1774584640946,-300.73666396,0.00015309,2]
[418934245,1774584640955,-300.73666396,0.00015309,2]
[418934246,1774584640965,-2320.27790869,0.00015309,2]
[418934247,1774584640974,-24.36019605,0.00015309,2]
[418934248,1774584640985,-126.63980395,0.00015309,2]
[418934249,1774584640995,-282.71673119,0.00015309,2]
[418934251,1774584641004,-257.43513014,0.00015321,2]
[418934270,1774584643013,-684.99999982,0.00015321,2]
[418934281,1774584645723,-507.83987004,0.00015321,2]
[418934283,1774584645733,-152.782,0.00015321,2]
[418934284,1774584645742,-500.0,0.00015364,2]
[418934285,1774584645751,-10272.10520533,0.00015364,2]
[418934286,1774584645762,-151.0,0.00015364,2]
[418934287,1774584645771,-293.17725025,0.00015364,2]
[418934288,1774584645780,-151.0,0.00015396,2]
[418934289,1774584645790,-158.948087,0.00015396,2]
[418934290,1774584645799,-158.948087,0.00015396,2]
[418934291,1774584645808,-158.948087,0.00015396,2]
[418934292,1774584645818,-158.948087,0.00015396,2]
[418934293,1774584645827,-151.0,0.00015396,2]
[418934294,1774584645836,-891.90809627,0.000154,2]
[418934295,1774584646097,-1108.09190373,0.000154,2]
[418934296,1774584646109,-1710.06795543,0.000154,2]
[418934297,1774584646473,-297.93204457,0.000154,2]
[418934298,1774584646482,-151.0,0.00015419,2]
[418934299,1774584646492,-151.0,0.00015419,2]
[418934300,1774584646501,-264.24576,0.00015419,2]
[418934301,1774584646511,-264.24576,0.00015419,2]
[418934302,1774584646520,-264.24576,0.00015419,2]
[418934303,1774584646529,-264.24576,0.00015419,2]
[418934304,1774584646539,-500.0,0.00015419,2]
[418934305,1774584646548,-298.07893126,0.00015419,2]
[418934354,1774585832280,-250.0,0.00013,2]
[418934355,1774585832289,-342.26,0.0001311,2]
[418934356,1774585832299,-510.0,0.00013111,2]
[418934357,1774585832308,-150.0,0.0001395,2]
[418934358,1774585832317,-234.56,0.00014163,2]
[418934359,1774585832325,-30.31268707,0.00014241,2]
[418934389,1774585838161,-593.457277,0.00014241,2]
[418934390,1774585838276,-606.36003593,0.00014241,2]
[418934391,1774585838286,-174.68,0.00014268,2]
[418934392,1774585838295,-300.0,0.00014299,2]
[418934393,1774585838304,-1200.0,0.00014299,2]
[418934394,1774585838314,-315.99,0.000143,2]
[418934395,1774585838323,-300.0,0.000143,2]
[418934396,1774585838332,-300.0,0.000143,2]
[418934397,1774585838341,-300.0,0.000143,2]
[418934398,1774585838350,-600.0,0.000143,2]
[418934399,1774585838359,-2500.0,0.000143,2]
[418934400,1774585838368,-1987.51996407,0.000143,2]
[418934401,1774585838379,-512.48003593,0.000143,2]
[418934402,1774585838388,-2500.0,0.000143,2]
[418934403,1774585838398,-2500.0,0.000143,2]
[418934404,1774585838407,-2500.0,0.000143,2]
[418934405,1774585838416,-300.0,0.000143,2]
[418934406,1774585838425,-300.0,0.000143,2]
[418934407,1774585838434,-600.0,0.000143,2]
[418934408,1774585838444,-600.0,0.000143,2]
[418934409,1774585838454,-600.0,0.000143,2]
[418934410,1774585838463,-600.0,0.000143,2]
[418934411,1774585838472,-500.0,0.000143,2]
[418934412,1774585838481,-500.0,0.000143,2]
[418934413,1774585838489,-500.0,0.000143,2]
[418934414,1774585838499,-500.0,0.000143,2]
[418934415,1774585838508,-501.65714884,0.000143,2]
[418934416,1774585838517,-3633.19,0.00014552,2]
[418934417,1774585838526,-20262.46,0.00014552,2]
[418934418,1774585838535,-261.6,0.00014552,2]
[418934419,1774585838544,-151.0,0.00014552,2]
[418934420,1774585838553,-151.0,0.00014552,2]
[418934421,1774585838562,-151.0,0.00014552,2]
[418934422,1774585838571,-201.724896,0.00014552,2]
[418934423,1774585838580,-151.0,0.00014552,2]
[418934424,1774585838589,-151.0,0.00014552,2]
[418934425,1774585838598,-196.10983,0.00014552,2]
[418934426,1774585838607,-196.10983,0.00014552,2]
[418934428,1774585838616,-151.0,0.00014552,2]
[418934430,1774585838625,-151.0,0.00014552,2]
[418934432,1774585838634,-196.10983,0.00014552,2]
[418934434,1774585838643,-196.10983,0.00014552,2]
[418934436,1774585838652,-196.10983,0.00014552,2]
[418934438,1774585838660,-196.10983,0.00014552,2]
[418934440,1774585838669,-196.10983,0.00014552,2]
[418934442,1774585838678,-196.10983,0.00014552,2]
[418934444,1774585838687,-151.0,0.00014552,2]
[418934446,1774585838696,-151.0,0.00014552,2]
[418934448,1774585838705,-151.0,0.00014552,2]
[418934450,1774585838714,-151.0,0.00014552,2]
[418934452,1774585838723,-211.396608,0.00014552,2]
[418934454,1774585838732,-211.396608,0.00014552,2]
[418934456,1774585838741,-211.396608,0.00014552,2]
[418934458,1774585838750,-211.396608,0.00014552,2]
[418934459,1774585838759,-211.396608,0.00014552,2]
[418934461,1774585838768,-211.396608,0.00014552,2]
[418934463,1774585838777,-211.396608,0.00014552,2]
[418934465,1774585838786,-211.396608,0.00014552,2]
[418934467,1774585838796,-151.0,0.00014552,2]
[418934469,1774585838805,-151.0,0.00014552,2]
[418934470,1774585838814,-151.0,0.00014552,2]
[418934471,1774585838823,-151.0,0.00014552,2]
[418934472,1774585838832,-151.0,0.00014552,2]
[418934473,1774585838840,-246.377052,0.00014552,2]
[418934474,1774585838849,-151.0,0.00014552,2]
[418934475,1774585838858,-151.0,0.00014552,2]
[418934476,1774585838867,-503.47318171,0.00014552,2]
[418934477,1774585838876,-315.99,0.00014574,2]
[418934478,1774585838885,-500.0,0.00014795,2]
[418934479,1774585838894,-315.99,0.00014848,2]
[418934480,1774585838903,-300.0,0.00015,2]
[418934481,1774585838911,-153.82091839,0.00015056,2]
[418934482,1774585838920,-13682.64330826,0.00015062,2]
[418934483,1774585838929,-154.102073,0.00015062,2]
[418934484,1774585838939,-350.0,0.00015069,2]
[418934485,1774585838947,-151.0,0.00015073,2]
[418934486,1774585838956,-151.0,0.00015073,2]
[418934487,1774585838965,-151.0,0.00015099,2]
[418934488,1774585838974,-151.0,0.00015099,2]
[418934489,1774585838983,-151.36681,0.00015099,2]
[418934490,1774585838992,-196.10983,0.00015099,2]
[418934491,1774585839001,-196.10983,0.00015099,2]
[418934492,1774585839010,-151.0,0.00015099,2]
[418934493,1774585839019,-151.0,0.00015099,2]
[418934494,1774585839028,-196.10983,0.00015099,2]
[418934495,1774585839037,-196.10983,0.00015099,2]
[418934496,1774585839047,-196.10983,0.00015099,2]
[418934497,1774585839056,-196.10983,0.00015099,2]
[418934498,1774585839065,-196.10983,0.00015099,2]
[418934499,1774585839074,-196.10983,0.00015099,2]
[418934500,1774585839083,-151.0,0.00015099,2]
[418934501,1774585839092,-151.0,0.00015099,2]
[418934502,1774585839101,-211.396608,0.00015099,2]
[418934503,1774585839111,-211.396608,0.00015099,2]
[418934504,1774585839120,-211.396608,0.00015099,2]
[418934505,1774585839129,-211.396608,0.00015099,2]
[418934506,1774585839138,-211.396608,0.00015099,2]
[418934507,1774585839147,-211.396608,0.00015099,2]
[418934508,1774585839156,-211.396608,0.00015099,2]
[418934509,1774585839165,-211.396608,0.00015099,2]
[418934510,1774585839175,-151.0,0.00015099,2]
[418934511,1774585839185,-151.0,0.00015099,2]
[418934512,1774585839194,-56324.036,0.00015099,2]
[418934513,1774585839203,-355.0,0.00015121,2]
[418934514,1774585839212,-753.0,0.00015121,2]
[418934515,1774585839221,-315.99,0.00015122,2]
[418934516,1774585839231,-700.0,0.00015144,2]
[418934517,1774585839240,-151.0,0.00015156,2]
[418934518,1774585839249,-151.0,0.00015162,2]
[418934519,1774585839258,-151.0,0.00015162,2]
[418934520,1774585839267,-196.10983,0.00015162,2]
[418934521,1774585839276,-196.10983,0.00015162,2]
[418934522,1774585839285,-196.10983,0.00015162,2]
[418934523,1774585839295,-196.109826,0.00015162,2]
[418934524,1774585839304,-210.627428,0.00015162,2]
[418934525,1774585839313,-211.396608,0.00015162,2]
[418934526,1774585839322,-211.396608,0.00015162,2]
[418934527,1774585839331,-211.396608,0.00015162,2]
[418934528,1774585839340,-211.396616,0.00015162,2]
[418934529,1774585839350,-151.0,0.00015162,2]
[418934530,1774585839359,-151.0,0.00015162,2]
[418934531,1774585839368,-321.69775178,0.00015162,2]
[418934532,1774585839378,-500.0,0.00015162,2]
[418934533,1774585839388,-9211.34798985,0.00015162,2]
[418934534,1774585839397,-500.0,0.00015162,2]
[418934535,1774585839408,-500.0,0.00015162,2]
[418934536,1774585839418,-500.0,0.00015162,2]
[418934537,1774585839427,-500.0,0.00015162,2]
[418934538,1774585839437,-500.0,0.00015162,2]
[418934539,1774585839446,-500.0,0.00015162,2]
[418934540,1774585839455,-500.0,0.00015162,2]
[418934541,1774585839464,-500.0,0.00015162,2]
[418934542,1774585839473,-500.0,0.00015162,2]
[418934543,1774585839483,-500.0,0.00015162,2]
[418934544,1774585839492,-500.0,0.00015162,2]
[418934545,1774585839502,-623.28349852,0.00015162,2]
[418934546,1774585839511,-500.0,0.00015162,2]
[418934547,1774585839520,-500.0,0.00015162,2]
[418934548,1774585839529,-500.0,0.00015162,2]
[418934549,1774585839538,-500.0,0.00015162,2]
[418934550,1774585839547,-500.0,0.00015162,2]
[418934551,1774585839556,-500.0,0.00015162,2]
[418934552,1774585839565,-151.0,0.00015162,2]
[418934553,1774585839574,-500.0,0.00015162,2]
[418934554,1774585839583,-500.0,0.00015162,2]
[418934555,1774585839592,-500.0,0.00015162,2]
[418934556,1774585839601,-500.0,0.00015162,2]
[418934557,1774585839610,-500.0,0.00015162,2]
[418934558,1774585839619,-500.0,0.00015162,2]
[418934559,1774585839628,-500.0,0.00015162,2]
[418934560,1774585839637,-500.0,0.00015162,2]
[418934561,1774585839645,-500.0,0.00015162,2]
[418934562,1774585839654,-500.0,0.00015162,2]
[418934563,1774585839663,-500.0,0.00015162,2]
[418934564,1774585839672,-500.0,0.00015162,2]
[418934565,1774585839681,-500.0,0.00015162,2]
[418934566,1774585839692,-500.0,0.00015162,2]
[418934567,1774585839701,-500.0,0.00015162,2]
[418934568,1774585839710,-500.0,0.00015162,2]
[418934569,1774585839719,-174.61919141,0.00015162,2]
[418934570,1774585839728,-250.0,0.00015162,2]
[418934571,1774585839737,-250.0,0.00015162,2]
[418934572,1774585839746,-250.0,0.00015162,2]
[418934573,1774585839756,-250.0,0.00015162,2]
[418934574,1774585839765,-250.0,0.00015162,2]
[418934575,1774585839774,-250.0,0.00015162,2]
[418934576,1774585839783,-250.0,0.00015162,2]
[418934577,1774585839792,-250.0,0.00015162,2]
[418934578,1774585839801,-250.0,0.00015162,2]
[418934579,1774585839810,-250.0,0.00015162,2]
[418934580,1774585839819,-262.90206542,0.00015162,2]
[418934581,1774585839828,-250.0,0.00015162,2]
[418934582,1774585839837,-266.26241115,0.00015162,2]
[418934583,1774585839846,-279.9045709,0.00015162,2]
[418934584,1774585839855,-743.50770149,0.00015162,2]
[418934585,1774585839864,-151.0,0.00015196,2]
[418934586,1774585839873,-500.0,0.00015203,2]
[418934587,1774585839882,-156.92461107,0.00015203,2]
[418934588,1774585839891,-158.535545,0.00015205,2]
[418934589,1774585839900,-151.0,0.00015205,2]
[418934590,1774585839909,-10000.0,0.00015205,2]
[418934591,1774585839918,-9552.16786547,0.00015217,2]
[418934592,1774585839927,-500.0,0.00015217,2]
[418934593,1774585839936,-151.0,0.00015217,2]
[418934594,1774585839945,-272.62944185,0.00015217,2]
[418934595,1774585839954,-281.000795,0.00015251,2]
[418934596,1774585839963,-1160.22,0.00015255,2]
[418934597,1774585839973,-9905.5980765,0.00015272,2]
[418934598,1774585839982,-500.0,0.00015272,2]
[418934599,1774585839991,-151.0,0.00015272,2]
[418934600,1774585840000,-282.71673119,0.00015272,2]
[418934601,1774585840009,-500.0,0.00015296,2]
[418934602,1774585840018,-582.63,0.0001531,2]
[418934603,1774585840027,-9590.73,0.0001531,2]
[418934604,1774585840036,-9999.99,0.0001531,2]
[418934605,1774585840045,-3852.67,0.0001531,2]
[418934606,1774585840054,-150.99,0.0001531,2]
[418934607,1774585840063,-299.99,0.0001531,2]
[418934608,1774585840073,-150.99,0.0001531,2]
[418934609,1774585840082,-10272.10520533,0.00015327,2]
[418934610,1774585840091,-500.0,0.00015327,2]
[418934611,1774585840100,-151.0,0.00015327,2]
[418934612,1774585840109,-293.17725025,0.00015327,2]
[418934613,1774585840118,-3099.04,0.00015331,2]
[418934614,1774585840126,-500.0,0.0001534,2]
[418934615,1774585840135,-500.0,0.0001534,2]
[418934616,1774585840144,-16651.2527017,0.00015341,2]
[418934617,1774585840153,-1467.5751871,0.00015341,2]
[418934618,1774585840162,-1264.8721743,0.00015341,2]
[418934619,1774585840171,-9641.88501971,0.00015341,2]
[418934623,1774585840861,-464.56158212,0.00015341,2]
[418934624,1774585840976,-11067.60076267,0.00015341,2]
[418934625,1774585840987,-820.1314,0.00015365,2]
[418934626,1774585840998,-500.0,0.00015373,2]
[418934627,1774585841008,-500.0,0.00015373,2]
[418934628,1774585841017,-500.0,0.00015373,2]
[418934629,1774585841026,-166.61222509,0.00015373,2]
[418934630,1774585841038,-501.27716999,0.00015373,2]
[418934631,1774585841047,-501.54844345,0.00015373,2]
[418934632,1774585841056,-164.15789102,0.00015373,2]
[418934633,1774585841066,-500.0,0.00015373,2]
[418934634,1774585841075,-162.88089456,0.00015373,2]
[418934635,1774585841084,-351.66593382,0.00015373,2]
[418934637,1774585841094,-10652.17309792,0.00015382,2]
[418934638,1774585841103,-500.0,0.00015382,2]
[418934639,1774585841113,-151.0,0.00015382,2]
[418934640,1774585841122,-304.02480851,0.00015382,2]
[418934641,1774585841131,-2661.88746517,0.00015392,2]
[418934642,1774585841141,-316.02449854,0.00015396,2]
[418934643,1774585841150,-599.47015,0.00015419,2]
[418934644,1774585841159,-500.0,0.00015419,2]
[418934645,1774585841168,-150.0,0.00015419,3]
[418934646,1774585841178,-11046.30350255,0.00015437,2]
[418934647,1774585841187,-500.0,0.00015437,2]
[418934648,1774585841196,-151.0,0.00015437,2]
[418934649,1774585841206,-315.27372642,0.00015437,2]
[418934650,1774585841215,-1000.0,0.00015473,2]
[418934651,1774585841224,-3662.99675034,0.00015492,2]
[418934675,1774585846302,-637.55999999,0.00015492,2]
[418934676,1774585846473,-934.08891681,0.00015492,2]
[418934681,1774585875253,5533.0,0.000109,5]
[418934684,1774585906742,5377.0,0.000109,5]
[418934690,1774586474869,-183.0,0.000109,3]
[418934691,1774586474891,-150.0,0.000109,3]
[418934692,1774586474914,-313.0,0.00013111,2]
[418934693,1774586474941,-5050.7185,0.00014452,2]
[418934694,1774586474964,-151.0,0.00014452,2]
[418934695,1774586474987,-1200.0,0.00014613,2]
[418934696,1774586475010,-2000.0,0.00014614,2]
[418934697,1774586475032,-150.0,0.00014961,2]
[418934698,1774586475055,-300.0,0.00014961,2]
[418934699,1774586482058,151.0,0.00014429,2]
[418934700,1774586483409,510.0,0.00013111,2]
[418934701,1774586485779,-63534.2815,0.00014962,2]
[418934710,1774587032210,-510.0,0.00013111,2]
[418934711,1774587032219,-340.97660578,0.00013696,2]
[418934712,1774587032229,-600.0,0.00013706,2]
[418934713,1774587032238,-63.19245351,0.00013942,2]
[418934714,1774587032319,-236.80754649,0.00013942,2]
[418934715,1774587032328,-300.0,0.00013942,2]
[418934716,1774587032339,-247.99397155,0.00013942,2]
[418934717,1774587032428,-875.2214,0.00013942,2]
[418934718,1774587032440,-76.78462845,0.00013942,2]
[418934719,1774587032450,-456.33898531,0.00013943,2]
[418934720,1774587032485,-265.05317447,0.00013943,2]
[418934721,1774587032498,-885.17258133,0.00013943,2]
[418934722,1774587032511,-816.11829527,0.00013943,2]
[418934723,1774587032522,-77.31696362,0.00013943,2]
[418934724,1774587032531,-2500.0,0.00013943,2]
[418934725,1774587032541,-2500.0,0.00013943,2]
[418934726,1774587032550,-300.0,0.00013943,2]
[418934727,1774587032559,-300.0,0.00013943,2]
[418934728,1774587032568,-150.58434504,0.00014075,2]